[Event "Titled Tuesday Blitz July 18 Late 2023"]
[White "Michalczak, Thomas"]
[Black "Romero Ruscalleda, Josep"]
[WhiteFideId "4622634"]
[BlackFideId "2231859"]
[WhiteElo "2446"]
[BlackElo "2379"]
[Result "1-0"]
[Round "11"]
[TimeControl "180+2"]
[Date "2023.07.18"]
[WhiteClock "0:00:13"]
[BlackClock "0:00:08"]
[Board "80"]

1. e4 {[%clk 0:03:00]}  g6 {[%clk 0:03:00]} 2. d4 {[%clk 0:02:59]}  Bg7 {[%clk 0:03:01]} 3. Nc3 {[%clk 0:02:59]}  d6 {[%clk 0:03:01]} 4. Be3 {[%clk 0:02:58]}  a6 {[%clk 0:03:01]} 5. h4 {[%clk 0:02:58]}  h6 {[%clk 0:02:59]} 6. Qd2 {[%clk 0:02:48]}  b5 {[%clk 0:02:59]} 7. f3 {[%clk 0:02:29]}  Nd7 {[%clk 0:02:57]} 8. g4 {[%clk 0:02:24]}  Ngf6 {[%clk 0:02:54]} 9. Bg2 {[%clk 0:02:20]}  Bb7 {[%clk 0:02:51]} 10. g5 {[%clk 0:02:18]}  hxg5 {[%clk 0:02:46]} 11. hxg5 {[%clk 0:02:18]}  Rxh1 {[%clk 0:02:34]} 12. Bxh1 {[%clk 0:02:18]}  Nh5 {[%clk 0:02:32]} 13. O-O-O {[%clk 0:02:09]}  c5 {[%clk 0:02:21]} 14. Nge2 {[%clk 0:01:59]}  Qa5 {[%clk 0:02:17]} 15. Kb1 {[%clk 0:01:56]}  b4 {[%clk 0:02:12]} 16. Nd5 {[%clk 0:01:56]}  Bxd5 {[%clk 0:02:12]} 17. exd5 {[%clk 0:01:56]}  c4 {[%clk 0:02:12]} 18. c3 {[%clk 0:01:46]}  Rb8 {[%clk 0:02:06]} 19. Ka1 {[%clk 0:01:41]}  Qa4 {[%clk 0:01:48]} 20. f4 {[%clk 0:01:28]}  Nb6 {[%clk 0:01:36]} 21. cxb4 {[%clk 0:01:20]}  Nd7 {[%clk 0:01:32]} 22. a3 {[%clk 0:01:14]}  a5 {[%clk 0:01:27]} 23. Nc3 {[%clk 0:01:13]}  Qb3 {[%clk 0:01:24]} 24. b5 {[%clk 0:01:13]}  Nb6 {[%clk 0:01:18]} 25. Be4 {[%clk 0:01:04]}  Na4 {[%clk 0:01:18]} 26. Qc2 {[%clk 0:00:32]}  Nxc3 {[%clk 0:01:04]} 27. Qxb3 {[%clk 0:00:29]}  cxb3 {[%clk 0:01:03]} 28. bxc3 {[%clk 0:00:29]}  Rxb5 {[%clk 0:01:01]} 29. Kb2 {[%clk 0:00:23]}  a4 {[%clk 0:00:59]} 30. c4 {[%clk 0:00:20]}  Ra5 {[%clk 0:00:55]} 31. Rg1 {[%clk 0:00:17]}  Kd7 {[%clk 0:00:52]} 32. Bd3 {[%clk 0:00:17]}  Ke8 {[%clk 0:00:43]} 33. Kc3 {[%clk 0:00:17]}  Kf8 {[%clk 0:00:37]} 34. Kb4 {[%clk 0:00:18]}  Ra8 {[%clk 0:00:36]} 35. c5 {[%clk 0:00:18]}  Ke8 {[%clk 0:00:34]} 36. c6 {[%clk 0:00:18]}  Kd8 {[%clk 0:00:34]} 37. Bb5 {[%clk 0:00:15]}  Kc7 {[%clk 0:00:34]} 38. Bxa4 {[%clk 0:00:16]}  b2 {[%clk 0:00:33]} 39. Bb5 {[%clk 0:00:15]}  Ng3 {[%clk 0:00:29]} 40. Rb1 {[%clk 0:00:13]}  Nf5 {[%clk 0:00:29]} 41. Bf2 {[%clk 0:00:14]}  Nxd4 {[%clk 0:00:26]} 42. Rxb2 {[%clk 0:00:13]}  Nxb5 {[%clk 0:00:26]} 43. Re2 {[%clk 0:00:05]}  Nxa3 {[%clk 0:00:17]} 44. Rxe7+ {[%clk 0:00:06]}  Kd8 {[%clk 0:00:17]} 45. Rxf7 {[%clk 0:00:06]}  Nc2+ {[%clk 0:00:15]} 46. Kb3 {[%clk 0:00:05]}  Bd4 {[%clk 0:00:15]} 47. Rf8+ {[%clk 0:00:04]}  Kc7 {[%clk 0:00:15]} 48. Rxa8 {[%clk 0:00:05]}  Na1+ {[%clk 0:00:15]} 49. Rxa1 {[%clk 0:00:04]}  Bxa1 {[%clk 0:00:15]} 50. Kc4 {[%clk 0:00:03]}  Bg7 {[%clk 0:00:14]} 51. Bd4 {[%clk 0:00:04]}  Bf8 {[%clk 0:00:14]} 52. Bf6 {[%clk 0:00:03]}  Kb6 {[%clk 0:00:13]} 53. Kd4 {[%clk 0:00:04]}  Kc7 {[%clk 0:00:11]} 54. Ke4 {[%clk 0:00:04]}  Kb6 {[%clk 0:00:10]} 55. f5 {[%clk 0:00:05]}  gxf5+ {[%clk 0:00:10]} 56. Kxf5 {[%clk 0:00:06]}  Kc5 {[%clk 0:00:10]} 57. Ke6 {[%clk 0:00:07]}  Kb6 {[%clk 0:00:09]} 58. g6 {[%clk 0:00:08]}  Kc7 {[%clk 0:00:08]} 59. g7 {[%clk 0:00:09]}  Bxg7 {[%clk 0:00:08]} 60. Bxg7 {[%clk 0:00:10]}  Kc8 {[%clk 0:00:08]} 61. Bf8 {[%clk 0:00:10]}  Kc7 {[%clk 0:00:09]} 62. Bxd6+ {[%clk 0:00:11]}  Kb6 {[%clk 0:00:09]} 63. Be5 {[%clk 0:00:12]}  Kb5 {[%clk 0:00:08]} 64. Kd7 {[%clk 0:00:13]} 1-0


[Site "https://www.chess.com"]

[Event "Titled Tuesday Blitz July 18 Late 2023"]
[White "Gaal, Zsoka"]
[Black "Gerbelli Neto, Eduardo"]
[WhiteFideId "777765"]
[BlackFideId "2103281"]
[WhiteElo "2438"]
[BlackElo "2378"]
[Result "1-0"]
[Round "11"]
[TimeControl "180+2"]
[Date "2023.07.18"]
[WhiteClock "0:01:06"]
[BlackClock "0:00:26"]
[Board "81"]

1. Nf3 {[%clk 0:03:00]}  Nf6 {[%clk 0:02:59]} 2. b3 {[%clk 0:03:01]}  c5 {[%clk 0:02:58]} 3. Bb2 {[%clk 0:03:01]}  d5 {[%clk 0:02:58]} 4. g3 {[%clk 0:03:02]}  Nc6 {[%clk 0:02:57]} 5. d4 {[%clk 0:03:01]}  e6 {[%clk 0:02:56]} 6. Bg2 {[%clk 0:03:01]}  cxd4 {[%clk 0:02:55]} 7. Nxd4 {[%clk 0:03:01]}  Be7 {[%clk 0:02:54]} 8. O-O {[%clk 0:03:01]}  O-O {[%clk 0:02:54]} 9. c4 {[%clk 0:03:00]}  Nxd4 {[%clk 0:02:50]} 10. Qxd4 {[%clk 0:02:58]}  dxc4 {[%clk 0:02:50]} 11. Qxc4 {[%clk 0:02:57]}  Qa5 {[%clk 0:02:40]} 12. Nc3 {[%clk 0:02:54]}  Qb4 {[%clk 0:02:33]} 13. Qxb4 {[%clk 0:02:47]}  Bxb4 {[%clk 0:02:34]} 14. Rfd1 {[%clk 0:02:43]}  Rb8 {[%clk 0:02:19]} 15. a3 {[%clk 0:02:33]}  Be7 {[%clk 0:02:15]} 16. Rac1 {[%clk 0:02:18]}  Bd7 {[%clk 0:02:13]} 17. Ne4 {[%clk 0:02:18]}  Bb5 {[%clk 0:01:52]} 18. Rc7 {[%clk 0:02:09]}  Bd8 {[%clk 0:01:40]} 19. Nxf6+ {[%clk 0:01:58]}  gxf6 {[%clk 0:01:29]} 20. Rc2 {[%clk 0:01:52]}  e5 {[%clk 0:01:11]} 21. a4 {[%clk 0:01:51]}  Ba6 {[%clk 0:01:03]} 22. Rd7 {[%clk 0:01:47]}  Bb6 {[%clk 0:00:56]} 23. Bd5 {[%clk 0:01:36]}  Rbd8 {[%clk 0:00:52]} 24. Rxd8 {[%clk 0:01:30]}  Rxd8 {[%clk 0:00:53]} 25. e4 {[%clk 0:01:30]}  Ba5 {[%clk 0:00:44]} 26. Kg2 {[%clk 0:01:28]}  Bd3 {[%clk 0:00:30]} 27. Rc1 {[%clk 0:01:19]}  b6 {[%clk 0:00:28]} 28. f4 {[%clk 0:01:18]}  f5 {[%clk 0:00:27]} 29. Bxe5 {[%clk 0:01:12]}  Bxe4+ {[%clk 0:00:26]} 30. Bxe4 {[%clk 0:01:11]}  fxe4 {[%clk 0:00:27]} 31. Bf6 {[%clk 0:01:12]}  Re8 {[%clk 0:00:27]} 32. Kf2 {[%clk 0:01:09]}  e3+ {[%clk 0:00:26]} 33. Ke2 {[%clk 0:01:09]}  Bd2 {[%clk 0:00:27]} 34. Rc7 {[%clk 0:01:09]}  a6 {[%clk 0:00:27]} 35. Rb7 {[%clk 0:01:06]}  b5 {[%clk 0:00:26]} 36. axb5 {[%clk 0:01:06]}  axb5 {[%clk 0:00:27]} 37. Rxb5 {[%clk 0:01:07]}  h6 {[%clk 0:00:28]} 38. Rb7 {[%clk 0:01:06]}  Ra8 {[%clk 0:00:27]} 39. f5 {[%clk 0:01:06]}  Ra2 {[%clk 0:00:27]} 40. Rb8+ {[%clk 0:01:06]}  Kh7 {[%clk 0:00:26]} 41. Rh8# {[%clk 0:01:06]} 1-0


[Site "https://www.chess.com"]

[Event "Titled Tuesday Blitz July 18 Late 2023"]
[White "kripri"]
[Black "Ai, Evan"]
[BlackFideId "2094770"]
[WhiteElo "2316"]
[BlackElo "2407"]
[Result "1/2-1/2"]
[Round "11"]
[TimeControl "180+2"]
[Date "2023.07.18"]
[WhiteClock "0:00:11"]
[BlackClock "0:00:06"]
[Board "85"]

1. e4 {[%clk 0:02:18]}  d5 {[%clk 0:03:00]} 2. exd5 {[%clk 0:02:16]}  Qxd5 {[%clk 0:03:01]} 3. Nc3 {[%clk 0:02:16]}  Qa5 {[%clk 0:03:00]} 4. d4 {[%clk 0:02:14]}  c6 {[%clk 0:03:00]} 5. Bc4 {[%clk 0:02:11]}  Nf6 {[%clk 0:02:59]} 6. Ne2 {[%clk 0:02:10]}  Bf5 {[%clk 0:02:57]} 7. O-O {[%clk 0:02:10]}  e6 {[%clk 0:02:55]} 8. Bf4 {[%clk 0:02:10]}  Nbd7 {[%clk 0:02:54]} 9. Qd2 {[%clk 0:02:04]}  Be7 {[%clk 0:02:52]} 10. a3 {[%clk 0:01:56]}  O-O {[%clk 0:02:52]} 11. Nd5 {[%clk 0:01:54]}  Qd8 {[%clk 0:02:50]} 12. Nxe7+ {[%clk 0:01:51]}  Qxe7 {[%clk 0:02:51]} 13. Rfe1 {[%clk 0:01:49]}  Nb6 {[%clk 0:02:50]} 14. Ba2 {[%clk 0:01:47]}  Ne4 {[%clk 0:02:46]} 15. Qe3 {[%clk 0:01:46]}  Nd5 {[%clk 0:02:43]} 16. Bxd5 {[%clk 0:01:32]}  cxd5 {[%clk 0:02:44]} 17. f3 {[%clk 0:01:29]}  Nd6 {[%clk 0:02:43]} 18. Bxd6 {[%clk 0:01:19]}  Qxd6 {[%clk 0:02:44]} 19. c3 {[%clk 0:01:18]}  a5 {[%clk 0:02:32]} 20. Ng3 {[%clk 0:01:07]}  Bg6 {[%clk 0:02:31]} 21. f4 {[%clk 0:01:07]}  b5 {[%clk 0:02:21]} 22. h4 {[%clk 0:01:06]}  h6 {[%clk 0:02:16]} 23. Qe5 {[%clk 0:01:00]}  Qxe5 {[%clk 0:02:08]} 24. Rxe5 {[%clk 0:00:57]}  Rab8 {[%clk 0:02:02]} 25. f5 {[%clk 0:00:56]}  exf5 {[%clk 0:02:01]} 26. Nxf5 {[%clk 0:00:54]}  Bxf5 {[%clk 0:01:46]} 27. Rxf5 {[%clk 0:00:55]}  Rfd8 {[%clk 0:01:46]} 28. Re1 {[%clk 0:00:45]}  f6 {[%clk 0:01:37]} 29. Re7 {[%clk 0:00:36]}  b4 {[%clk 0:01:36]} 30. axb4 {[%clk 0:00:32]}  axb4 {[%clk 0:01:36]} 31. h5 {[%clk 0:00:29]}  bxc3 {[%clk 0:01:35]} 32. bxc3 {[%clk 0:00:30]}  Kf8 {[%clk 0:01:25]} 33. Rc7 {[%clk 0:00:29]}  Rbc8 {[%clk 0:01:24]} 34. Rxc8 {[%clk 0:00:23]}  Rxc8 {[%clk 0:01:24]} 35. Rxd5 {[%clk 0:00:21]}  Rxc3 {[%clk 0:01:24]} 36. Kf2 {[%clk 0:00:20]}  Ke7 {[%clk 0:01:23]} 37. Rf5 {[%clk 0:00:16]}  Ke6 {[%clk 0:01:23]} 38. Rf4 {[%clk 0:00:16]}  Rd3 {[%clk 0:01:19]} 39. Re4+ {[%clk 0:00:16]}  Kf5 {[%clk 0:01:15]} 40. Re7 {[%clk 0:00:15]}  Rxd4 {[%clk 0:00:58]} 41. Rxg7 {[%clk 0:00:15]}  Rg4 {[%clk 0:00:58]} 42. Rh7 {[%clk 0:00:14]}  Kg5 {[%clk 0:00:57]} 43. Rf7 {[%clk 0:00:12]}  Rf4+ {[%clk 0:00:54]} 44. Kg3 {[%clk 0:00:11]}  Rf5 {[%clk 0:00:52]} 45. Kh3 {[%clk 0:00:10]}  Kxh5 {[%clk 0:00:41]} 46. g4+ {[%clk 0:00:10]}  Kg6 {[%clk 0:00:42]} 47. gxf5+ {[%clk 0:00:07]}  Kxf7 {[%clk 0:00:42]} 48. Kg4 {[%clk 0:00:07]}  Kg7 {[%clk 0:00:24]} 49. Kh5 {[%clk 0:00:08]}  Kh7 {[%clk 0:00:24]} 50. Kg4 {[%clk 0:00:08]}  Kg7 {[%clk 0:00:21]} 51. Kh5 {[%clk 0:00:08]}  Kh7 {[%clk 0:00:20]} 52. Kh4 {[%clk 0:00:09]}  Kh8 {[%clk 0:00:16]} 53. Kh5 {[%clk 0:00:09]}  Kg7 {[%clk 0:00:17]} 54. Kh4 {[%clk 0:00:09]}  Kf7 {[%clk 0:00:15]} 55. Kh5 {[%clk 0:00:10]}  Kg7 {[%clk 0:00:07]} 56. Kh4 {[%clk 0:00:10]}  Kf7 {[%clk 0:00:07]} 57. Kh5 {[%clk 0:00:11]}  Kg7 {[%clk 0:00:06]} 1/2-1/2


[Site "https://www.chess.com"]

[Event "Titled Tuesday Blitz July 18 Late 2023"]
[White "Ilyuchyk, Yana"]
[Black "cedchass2006"]
[WhiteFideId "13508407"]
[WhiteElo "2353"]
[BlackElo "2406"]
[Result "1/2-1/2"]
[Round "11"]
[TimeControl "180+2"]
[Date "2023.07.18"]
[WhiteClock "0:00:21"]
[BlackClock "0:00:33"]
[Board "86"]

1. e4 {[%clk 0:03:00]}  e5 {[%clk 0:02:59]} 2. Nf3 {[%clk 0:03:00]}  Nc6 {[%clk 0:02:59]} 3. Nc3 {[%clk 0:03:00]}  Nf6 {[%clk 0:02:59]} 4. d4 {[%clk 0:03:01]}  exd4 {[%clk 0:02:59]} 5. Nxd4 {[%clk 0:03:02]}  Bb4 {[%clk 0:02:59]} 6. Nxc6 {[%clk 0:03:02]}  bxc6 {[%clk 0:02:59]} 7. Bd3 {[%clk 0:03:03]}  d5 {[%clk 0:02:59]} 8. exd5 {[%clk 0:03:04]}  cxd5 {[%clk 0:03:00]} 9. O-O {[%clk 0:03:04]}  O-O {[%clk 0:03:00]} 10. h3 {[%clk 0:03:04]}  h6 {[%clk 0:02:57]} 11. Qf3 {[%clk 0:03:05]}  c6 {[%clk 0:02:55]} 12. Bf4 {[%clk 0:03:05]}  Bd6 {[%clk 0:02:55]} 13. Ne2 {[%clk 0:03:02]}  Bxf4 {[%clk 0:02:51]} 14. Nxf4 {[%clk 0:03:01]}  Qd6 {[%clk 0:02:50]} 15. Rad1 {[%clk 0:02:59]}  Nd7 {[%clk 0:02:48]} 16. Qg3 {[%clk 0:02:47]}  Ne5 {[%clk 0:02:43]} 17. Nh5 {[%clk 0:02:46]}  g6 {[%clk 0:02:28]} 18. Rfe1 {[%clk 0:02:44]}  Nc4 {[%clk 0:02:10]} 19. Bxc4 {[%clk 0:02:02]}  Qxg3 {[%clk 0:02:08]} 20. Nxg3 {[%clk 0:02:03]}  dxc4 {[%clk 0:02:08]} 21. Ne4 {[%clk 0:02:00]}  Bf5 {[%clk 0:02:08]} 22. c3 {[%clk 0:01:56]}  Rfd8 {[%clk 0:02:04]} 23. f3 {[%clk 0:01:45]}  Bxe4 {[%clk 0:01:57]} 24. fxe4 {[%clk 0:01:43]}  Rab8 {[%clk 0:01:52]} 25. Rxd8+ {[%clk 0:01:41]}  Rxd8 {[%clk 0:01:53]} 26. Re2 {[%clk 0:01:41]}  Kg7 {[%clk 0:01:52]} 27. Kf2 {[%clk 0:01:41]}  Kf6 {[%clk 0:01:52]} 28. e5+ {[%clk 0:01:34]}  Ke6 {[%clk 0:01:52]} 29. Kf3 {[%clk 0:01:25]}  Rd5 {[%clk 0:01:49]} 30. Re4 {[%clk 0:01:24]}  Rb5 {[%clk 0:01:43]} 31. Rxc4 {[%clk 0:01:23]}  Rxb2 {[%clk 0:01:44]} 32. Rxc6+ {[%clk 0:01:23]}  Kxe5 {[%clk 0:01:42]} 33. Ra6 {[%clk 0:01:22]}  Rc2 {[%clk 0:01:37]} 34. Rxa7 {[%clk 0:01:18]}  Rxc3+ {[%clk 0:01:38]} 35. Kf2 {[%clk 0:01:19]}  Rc2+ {[%clk 0:01:37]} 36. Kg1 {[%clk 0:01:18]}  Kf4 {[%clk 0:01:34]} 37. Kh2 {[%clk 0:01:15]}  f5 {[%clk 0:01:34]} 38. a4 {[%clk 0:01:14]}  Ra2 {[%clk 0:01:33]} 39. a5 {[%clk 0:01:13]}  g5 {[%clk 0:01:30]} 40. a6 {[%clk 0:01:07]}  g4 {[%clk 0:01:29]} 41. hxg4 {[%clk 0:01:07]}  fxg4 {[%clk 0:01:29]} 42. Rf7+ {[%clk 0:01:07]}  Kg5 {[%clk 0:01:24]} 43. a7 {[%clk 0:01:04]}  Kg6 {[%clk 0:01:24]} 44. Rb7 {[%clk 0:01:03]}  h5 {[%clk 0:01:21]} 45. Kg3 {[%clk 0:01:03]}  Kg5 {[%clk 0:01:16]} 46. Rg7+ {[%clk 0:00:53]}  Kf6 {[%clk 0:01:15]} 47. Rc7 {[%clk 0:00:51]}  Kg5 {[%clk 0:01:13]} 48. Rc5+ {[%clk 0:00:50]}  Kg6 {[%clk 0:01:10]} 49. Kh4 {[%clk 0:00:46]}  Rxa7 {[%clk 0:01:04]} 50. Rxh5 {[%clk 0:00:45]}  Ra2 {[%clk 0:00:53]} 51. Rg5+ {[%clk 0:00:45]}  Kf6 {[%clk 0:00:53]} 52. Rxg4 {[%clk 0:00:43]}  Ra1 {[%clk 0:00:53]} 53. Rb4 {[%clk 0:00:40]}  Kg6 {[%clk 0:00:52]} 54. Kg4 {[%clk 0:00:38]}  Ra6 {[%clk 0:00:51]} 55. g3 {[%clk 0:00:37]}  Kh6 {[%clk 0:00:50]} 56. Kh4 {[%clk 0:00:37]}  Kg6 {[%clk 0:00:50]} 57. g4 {[%clk 0:00:37]}  Kh6 {[%clk 0:00:50]} 58. Rb5 {[%clk 0:00:37]}  Kg6 {[%clk 0:00:50]} 59. Rh5 {[%clk 0:00:37]}  Ra1 {[%clk 0:00:48]} 60. Rb5 {[%clk 0:00:36]}  Rh1+ {[%clk 0:00:48]} 61. Kg3 {[%clk 0:00:36]}  Rg1+ {[%clk 0:00:49]} 62. Kf3 {[%clk 0:00:36]}  Rf1+ {[%clk 0:00:49]} 63. Kg2 {[%clk 0:00:36]}  Ra1 {[%clk 0:00:49]} 64. Rc5 {[%clk 0:00:31]}  Ra4 {[%clk 0:00:47]} 65. Kg3 {[%clk 0:00:30]}  Ra3+ {[%clk 0:00:46]} 66. Kh4 {[%clk 0:00:30]}  Ra1 {[%clk 0:00:47]} 67. Rc6+ {[%clk 0:00:29]}  Kg7 {[%clk 0:00:47]} 68. Kh5 {[%clk 0:00:29]}  Rh1+ {[%clk 0:00:47]} 69. Kg5 {[%clk 0:00:29]}  Ra1 {[%clk 0:00:47]} 70. Rc7+ {[%clk 0:00:28]}  Kg8 {[%clk 0:00:46]} 71. Kh5 {[%clk 0:00:28]}  Ra5+ {[%clk 0:00:45]} 72. g5 {[%clk 0:00:27]}  Ra6 {[%clk 0:00:44]} 73. Rd7 {[%clk 0:00:26]}  Rb6 {[%clk 0:00:42]} 74. Kg4 {[%clk 0:00:26]}  Ra6 {[%clk 0:00:42]} 75. Kf5 {[%clk 0:00:26]}  Rb6 {[%clk 0:00:40]} 76. Re7 {[%clk 0:00:25]}  Ra6 {[%clk 0:00:40]} 77. Re5 {[%clk 0:00:24]}  Rb6 {[%clk 0:00:40]} 78. Rc5 {[%clk 0:00:24]}  Ra6 {[%clk 0:00:39]} 79. Kg4 {[%clk 0:00:24]}  Kg7 {[%clk 0:00:39]} 80. Kh5 {[%clk 0:00:24]}  Rb6 {[%clk 0:00:35]} 81. Rc7+ {[%clk 0:00:23]}  Kg8 {[%clk 0:00:35]} 82. g6 {[%clk 0:00:23]}  Rb1 {[%clk 0:00:34]} 83. Kg5 {[%clk 0:00:22]}  Rg1+ {[%clk 0:00:34]} 84. Kf6 {[%clk 0:00:22]}  Rf1+ {[%clk 0:00:34]} 85. Ke5 {[%clk 0:00:22]}  Re1+ {[%clk 0:00:34]} 86. Kf4 {[%clk 0:00:23]}  Rf1+ {[%clk 0:00:34]} 87. Ke3 {[%clk 0:00:23]}  Rg1 {[%clk 0:00:34]} 88. g7 {[%clk 0:00:23]}  Rg3+ {[%clk 0:00:32]} 89. Kf4 {[%clk 0:00:22]}  Rxg7 {[%clk 0:00:32]} 90. Rxg7+ {[%clk 0:00:21]}  Kxg7 {[%clk 0:00:33]} 1/2-1/2


[Site "https://www.chess.com"]

[Event "Titled Tuesday Blitz July 18 Late 2023"]
[White "Garmendiarov"]
[Black "Jorajuria Mendoza, Algol"]
[BlackFideId "5128897"]
[WhiteElo "2304"]
[BlackElo "2403"]
[Result "0-1"]
[Round "11"]
[TimeControl "180+2"]
[Date "2023.07.18"]
[WhiteClock "0:00:04"]
[BlackClock "0:00:09"]
[Board "88"]

1. e4 {[%clk 0:03:00]}  c5 {[%clk 0:02:44]} 2. Nf3 {[%clk 0:03:01]}  Nc6 {[%clk 0:02:43]} 3. Bb5 {[%clk 0:03:01]}  g6 {[%clk 0:02:44]} 4. Bxc6 {[%clk 0:03:01]}  dxc6 {[%clk 0:02:43]} 5. d3 {[%clk 0:03:01]}  Bg7 {[%clk 0:02:43]} 6. h3 {[%clk 0:03:02]}  Qc7 {[%clk 0:02:43]} 7. Nc3 {[%clk 0:03:02]}  h6 {[%clk 0:02:40]} 8. Be3 {[%clk 0:03:02]}  b6 {[%clk 0:02:38]} 9. Qd2 {[%clk 0:03:02]}  Nf6 {[%clk 0:02:34]} 10. O-O {[%clk 0:03:01]}  g5 {[%clk 0:02:34]} 11. a4 {[%clk 0:02:56]}  a5 {[%clk 0:02:33]} 12. Nh2 {[%clk 0:02:51]}  g4 {[%clk 0:02:09]} 13. Nxg4 {[%clk 0:02:41]}  Bxg4 {[%clk 0:02:06]} 14. hxg4 {[%clk 0:02:41]}  Nxg4 {[%clk 0:02:07]} 15. Bf4 {[%clk 0:02:41]}  Be5 {[%clk 0:02:04]} 16. Ne2 {[%clk 0:02:31]}  h5 {[%clk 0:01:54]} 17. f3 {[%clk 0:02:28]}  Nf6 {[%clk 0:01:42]} 18. b3 {[%clk 0:02:19]}  h4 {[%clk 0:01:36]} 19. Bxe5 {[%clk 0:02:11]}  Qxe5 {[%clk 0:01:37]} 20. Qf4 {[%clk 0:02:01]}  Qe6 {[%clk 0:01:21]} 21. Rae1 {[%clk 0:01:42]}  O-O-O {[%clk 0:01:15]} 22. Qf5 {[%clk 0:01:31]}  Qxf5 {[%clk 0:01:06]} 23. exf5 {[%clk 0:01:32]}  Nd5 {[%clk 0:00:59]} 24. Kf2 {[%clk 0:01:10]}  Rh5 {[%clk 0:00:53]} 25. Rh1 {[%clk 0:00:59]}  Rdh8 {[%clk 0:00:46]} 26. c4 {[%clk 0:00:44]}  Nb4 {[%clk 0:00:44]} 27. Nf4 {[%clk 0:00:44]}  Rxf5 {[%clk 0:00:44]} 28. Re4 {[%clk 0:00:13]}  e5 {[%clk 0:00:26]} 29. Nh3 {[%clk 0:00:11]}  Nxd3+ {[%clk 0:00:24]} 30. Ke3 {[%clk 0:00:11]}  Nb4 {[%clk 0:00:21]} 31. Nf2 {[%clk 0:00:10]}  Rfh5 {[%clk 0:00:18]} 32. g3 {[%clk 0:00:07]}  hxg3 {[%clk 0:00:18]} 33. Rxh5 {[%clk 0:00:07]}  Rxh5 {[%clk 0:00:17]} 34. Ng4 {[%clk 0:00:06]}  g2 {[%clk 0:00:16]} 35. Kf2 {[%clk 0:00:06]}  f5 {[%clk 0:00:14]} 36. Rxe5 {[%clk 0:00:06]}  Nd3+ {[%clk 0:00:06]} 37. Kxg2 {[%clk 0:00:05]}  Nxe5 {[%clk 0:00:07]} 38. Nxe5 {[%clk 0:00:06]}  Kc7 {[%clk 0:00:07]} 39. f4 {[%clk 0:00:05]}  Rh7 {[%clk 0:00:07]} 40. Kf3 {[%clk 0:00:06]}  Rh3+ {[%clk 0:00:07]} 41. Ke2 {[%clk 0:00:06]}  Rxb3 {[%clk 0:00:07]} 42. Ng6 {[%clk 0:00:06]}  Rb4 {[%clk 0:00:07]} 43. Ne7 {[%clk 0:00:05]}  Rxc4 {[%clk 0:00:06]} 44. Ke3 {[%clk 0:00:06]}  Re4+ {[%clk 0:00:07]} 45. Kf3 {[%clk 0:00:06]}  Rxe7 {[%clk 0:00:07]} 46. Kg3 {[%clk 0:00:05]}  c4 {[%clk 0:00:08]} 47. Kf3 {[%clk 0:00:04]}  c3 {[%clk 0:00:09]} 0-1


[Site "https://www.chess.com"]

[Event "Titled Tuesday Blitz July 18 Late 2023"]
[White "Vaglio Munoz, Jaime"]
[Black "Seyhanoglu, Deniz"]
[WhiteFideId "6500145"]
[BlackFideId "6302572"]
[WhiteElo "2270"]
[BlackElo "2400"]
[Result "0-1"]
[Round "11"]
[TimeControl "180+2"]
[Date "2023.07.18"]
[WhiteClock "0:00:17"]
[BlackClock "0:00:11"]
[Board "91"]

1. Nf3 {[%clk 0:03:00]}  d5 {[%clk 0:02:42]} 2. c4 {[%clk 0:02:59]}  c6 {[%clk 0:02:41]} 3. b3 {[%clk 0:02:58]}  Nf6 {[%clk 0:02:40]} 4. Bb2 {[%clk 0:02:58]}  Bg4 {[%clk 0:02:41]} 5. g3 {[%clk 0:02:57]}  Bxf3 {[%clk 0:02:37]} 6. exf3 {[%clk 0:02:58]}  d4 {[%clk 0:02:36]} 7. d3 {[%clk 0:02:58]}  e5 {[%clk 0:02:35]} 8. Bg2 {[%clk 0:02:57]}  Bb4+ {[%clk 0:02:30]} 9. Nd2 {[%clk 0:02:56]}  Qa5 {[%clk 0:02:31]} 10. a3 {[%clk 0:02:55]}  Bxd2+ {[%clk 0:02:30]} 11. Qxd2 {[%clk 0:02:55]}  Qxd2+ {[%clk 0:02:31]} 12. Kxd2 {[%clk 0:02:56]}  O-O {[%clk 0:02:28]} 13. b4 {[%clk 0:02:55]}  a5 {[%clk 0:02:26]} 14. Rhe1 {[%clk 0:02:54]}  Nfd7 {[%clk 0:02:22]} 15. f4 {[%clk 0:02:42]}  exf4 {[%clk 0:02:21]} 16. Bxd4 {[%clk 0:02:41]}  fxg3 {[%clk 0:02:17]} 17. hxg3 {[%clk 0:02:42]}  axb4 {[%clk 0:02:14]} 18. axb4 {[%clk 0:02:43]}  Rxa1 {[%clk 0:02:11]} 19. Bxa1 {[%clk 0:02:41]}  Na6 {[%clk 0:02:10]} 20. Kc3 {[%clk 0:02:40]}  Rd8 {[%clk 0:02:02]} 21. Bb2 {[%clk 0:02:29]}  Kf8 {[%clk 0:02:00]} 22. Bc1 {[%clk 0:02:26]}  Re8 {[%clk 0:01:55]} 23. Be3 {[%clk 0:02:21]}  Nc7 {[%clk 0:01:52]} 24. Ra1 {[%clk 0:02:17]}  Ra8 {[%clk 0:01:50]} 25. Rxa8+ {[%clk 0:02:12]}  Nxa8 {[%clk 0:01:51]} 26. b5 {[%clk 0:02:11]}  cxb5 {[%clk 0:01:50]} 27. Bxb7 {[%clk 0:02:10]}  Nc7 {[%clk 0:01:47]} 28. c5 {[%clk 0:02:05]}  Ke7 {[%clk 0:01:29]} 29. d4 {[%clk 0:02:04]}  Nf6 {[%clk 0:01:25]} 30. Kb4 {[%clk 0:01:55]}  Kd7 {[%clk 0:01:15]} 31. Bg2 {[%clk 0:01:45]}  h6 {[%clk 0:01:06]} 32. Ka5 {[%clk 0:01:40]}  g5 {[%clk 0:00:59]} 33. Kb6 {[%clk 0:01:37]}  b4 {[%clk 0:00:57]} 34. Bh3+ {[%clk 0:01:26]}  g4 {[%clk 0:00:53]} 35. Bf1 {[%clk 0:01:19]}  Nfd5+ {[%clk 0:00:48]} 36. Ka5 {[%clk 0:01:18]}  b3 {[%clk 0:00:49]} 37. Bd3 {[%clk 0:01:15]}  b2 {[%clk 0:00:45]} 38. Bxh6 {[%clk 0:01:14]}  Nc3 {[%clk 0:00:40]} 39. Bf5+ {[%clk 0:01:12]}  Kc6 {[%clk 0:00:38]} 40. Bf4 {[%clk 0:01:00]}  N7d5 {[%clk 0:00:34]} 41. Bd3 {[%clk 0:00:52]}  Nxf4 {[%clk 0:00:31]} 42. gxf4 {[%clk 0:00:48]}  b1=Q {[%clk 0:00:32]} 43. Bxb1 {[%clk 0:00:44]}  Nxb1 {[%clk 0:00:33]} 44. Kb4 {[%clk 0:00:44]}  Nd2 {[%clk 0:00:32]} 45. Kc3 {[%clk 0:00:41]}  Ne4+ {[%clk 0:00:30]} 46. Kc4 {[%clk 0:00:42]}  Nxf2 {[%clk 0:00:28]} 47. d5+ {[%clk 0:00:41]}  Kc7 {[%clk 0:00:27]} 48. Kd4 {[%clk 0:00:39]}  f5 {[%clk 0:00:21]} 49. Ke5 {[%clk 0:00:26]}  Ne4 {[%clk 0:00:20]} 50. c6 {[%clk 0:00:22]}  Nd6 {[%clk 0:00:18]} 51. Kd4 {[%clk 0:00:21]}  Nf7 {[%clk 0:00:15]} 52. Ke3 {[%clk 0:00:19]}  Kd6 {[%clk 0:00:15]} 53. Kd4 {[%clk 0:00:19]}  Nd8 {[%clk 0:00:15]} 54. Kc4 {[%clk 0:00:18]}  Nf7 {[%clk 0:00:13]} 55. Kd4 {[%clk 0:00:18]}  Nh6 {[%clk 0:00:13]} 56. Ke3 {[%clk 0:00:17]}  Ng8 {[%clk 0:00:13]} 57. Kd4 {[%clk 0:00:17]}  Ne7 {[%clk 0:00:13]} 58. Ke3 {[%clk 0:00:16]}  Nxd5+ {[%clk 0:00:13]} 59. Kf2 {[%clk 0:00:17]}  Kxc6 {[%clk 0:00:13]} 60. Kg3 {[%clk 0:00:18]}  Kc5 {[%clk 0:00:12]} 61. Kh4 {[%clk 0:00:17]}  Kd4 {[%clk 0:00:12]} 62. Kg3 {[%clk 0:00:17]}  Ke3 {[%clk 0:00:12]} 63. Kg2 {[%clk 0:00:17]}  Nxf4+ {[%clk 0:00:12]} 64. Kg3 {[%clk 0:00:18]}  Ng6 {[%clk 0:00:13]} 65. Kg2 {[%clk 0:00:17]}  f4 {[%clk 0:00:13]} 66. Kh2 {[%clk 0:00:18]}  Kf2 {[%clk 0:00:12]} 67. Kh1 {[%clk 0:00:18]}  Ne5 {[%clk 0:00:12]} 68. Kh2 {[%clk 0:00:18]}  g3+ {[%clk 0:00:12]} 69. Kh3 {[%clk 0:00:17]}  g2 {[%clk 0:00:11]} 70. Kh4 {[%clk 0:00:17]}  g1=Q {[%clk 0:00:11]} 71. Kh5 {[%clk 0:00:18]}  Qg4+ {[%clk 0:00:10]} 72. Kh6 {[%clk 0:00:17]}  Qg6# {[%clk 0:00:11]} 0-1


[Site "https://www.chess.com"]